fUST/lending_fUST_20250619
["ID","MTS","AMOUNT","RATE_DAILY","PERIOD"]
[366462329,1750267840141,-460.0,0.00021917,6]
[366462333,1750267840151,-460.0,0.00021917,6]
[366462335,1750267840165,-440.0,0.00021917,6]
[366462337,1750267840175,-460.0,0.00021917,6]
[366462339,1750267840184,-578.9,0.00021917,6]
[366462341,1750267840194,-460.0,0.00021917,6]
[366462343,1750267840204,-2431.6,0.00021917,6]
[366462345,1750267840213,-899.37,0.00021917,6]
[366462347,1750267840223,-460.0,0.00021917,6]
[366462349,1750267840233,-749.32,0.00021917,6]
[366462351,1750267840242,-460.0,0.00021917,6]
[366462353,1750267840252,-460.0,0.00021917,6]
[366462355,1750267840262,-460.0,0.00021917,6]
[366462357,1750267840274,-460.0,0.00021917,6]
[366462374,1750267840438,-460.0,0.00021917,6]
[366462376,1750267840448,-460.0,0.00021917,6]
[366462377,1750267840457,-440.80583555,0.00021917,6]
[366462379,1750267840467,-460.0,0.00021917,6]
[366462382,1750267840477,-460.0,0.00021917,6]
[366462384,1750267840486,-460.0,0.00021917,6]
[366462386,1750267840495,-423.6857012,0.00021917,6]
[366462388,1750267840505,-430.0,0.00021917,6]
[366462390,1750267840514,-460.0,0.00021917,6]
[366462392,1750267840524,-460.0,0.00021917,6]
[366462393,1750267840534,-460.0,0.00021917,6]
[366462395,1750267840544,-400.90681113,0.00021917,6]
[366462397,1750267840554,-460.0,0.00021917,6]
[366462399,1750267840564,-177.81475002,0.00021917,6]
[366462401,1750267840573,-460.0,0.00021917,6]
[366462403,1750267840583,-460.0,0.00021917,6]
[366462405,1750267840592,-460.0,0.00021917,6]
[366462407,1750267840601,-924.08,0.00021917,6]
[366462409,1750267840612,-169.22602945,0.00021917,6]
[366462411,1750267840621,-460.0,0.00021917,6]
[366462413,1750267840632,-460.0,0.00021917,6]
[366462415,1750267840642,-460.0,0.00021917,6]
[366462417,1750267840652,-460.0,0.00021917,6]
[366462419,1750267840661,-460.0,0.00021917,6]
[366462421,1750267840671,-460.0,0.00021917,6]
[366462423,1750267840681,-460.0,0.00021917,6]
[366462425,1750267840690,-460.0,0.00021917,6]
[366462427,1750267840699,-249.20014089,0.00021917,6]
[366462429,1750267840709,-460.0,0.00021917,6]
[366462431,1750267840718,-460.0,0.00021917,6]
[366462433,1750267840728,-460.0,0.00021917,6]
[366462435,1750267840737,-460.0,0.00021917,6]
[366462437,1750267840746,-460.0,0.00021917,6]
[366462439,1750267840756,-460.0,0.00021917,6]
[366462441,1750267840765,-460.0,0.00021917,6]
[366462443,1750267840775,-1212.2,0.00021917,6]
[366462445,1750267840785,-460.0,0.00021917,6]
[366462447,1750267840795,-460.0,0.00021917,6]
[366462449,1750267840804,-460.0,0.00021917,6]
[366462451,1750267840814,-460.0,0.00021917,6]
[366462453,1750267840823,-882.51,0.00021917,6]
[366462455,1750267840832,-542.76118036,0.00021917,6]
[366462457,1750267840844,-460.0,0.00021917,6]
[366462459,1750267840852,-665.58,0.00021917,6]
[366462461,1750267840863,-460.0,0.00021917,6]
[366462463,1750267840872,-348.36172699,0.00021917,6]
[366462465,1750267840882,-1836.53,0.00021917,6]
[366462467,1750267840894,-460.0,0.00021917,6]
[366462470,1750267840903,-460.0,0.00021917,6]
[366462472,1750267840913,-460.0,0.00021917,6]
[366462474,1750267840925,-340.0,0.00021917,6]
[366462476,1750267840935,-506.77,0.00021917,6]
[366462478,1750267840945,-460.0,0.00021917,6]
[366462480,1750267840954,-500.33,0.00021917,6]
[366462482,1750267840963,-420.0,0.00021917,6]
[366462484,1750267840972,-460.0,0.00021917,6]
[366462486,1750267840982,-330.0,0.00021917,6]
[366462488,1750267840991,-460.0,0.00021917,6]
[366462490,1750267841000,-460.0,0.00021917,6]
[366462492,1750267841011,-601.60694409,0.00021917,6]
[366462494,1750267841020,-597.44037117,0.00021917,6]
[366462496,1750267841030,-809.6,0.00021917,6]
[366462498,1750267841039,-460.0,0.00021917,6]
[366462500,1750267841048,-460.0,0.00021917,6]
[366462502,1750267841057,-460.0,0.00021917,6]
[366462504,1750267841066,-460.0,0.00021917,6]
[366462506,1750267841075,-460.0,0.00021917,6]
[366462507,1750267841084,-460.0,0.00021917,6]
[366462509,1750267841094,-460.0,0.00021917,6]
[366462511,1750267841103,-262.8358406,0.00021917,6]
[366462513,1750267841113,-237.26308794,0.00021917,6]
[366462515,1750267841122,-460.0,0.00021917,6]
[366462517,1750267841131,-460.0,0.00021917,6]
[366462519,1750267841141,-430.0,0.00021917,6]
[366462521,1750267841150,-4862.94,0.00021917,6]
[366462523,1750267841159,-1112.01,0.00021917,6]
[366462525,1750267841169,-460.0,0.00021917,2]
[366462527,1750267841178,-460.0,0.00021917,6]
[366462529,1750267841188,-360.0,0.00021917,6]
[366462531,1750267841197,-460.0,0.00021917,6]
[366462533,1750267841206,-668.04,0.00021917,6]
[366462535,1750267841216,-460.0,0.00021917,6]
[366462537,1750267841226,-432.42692126,0.00021917,6]
[366462539,1750267841235,-460.0,0.00021917,6]
[366462541,1750267841245,-460.0,0.00021917,6]
[366462543,1750267841255,-433.64732835,0.00021917,6]
[366462545,1750267841265,-460.0,0.00021917,6]
[366462547,1750267841274,-1828.26,0.00021917,6]
[366462549,1750267841284,-153838.19170376,0.00021995,2]
[366462551,1750267841294,-889.44892257,0.00021999,2]
[366462553,1750267841303,-873.57596722,0.00022038,6]
[366462555,1750267841313,-873.57596722,0.00022176,6]
[366462557,1750267841322,-500.0,0.0002219,2]
[366462559,1750267841331,-160.0,0.0002219,2]
[366462561,1750267841342,-460.0,0.00022191,6]
[366462563,1750267841351,-586.62531999,0.00022191,6]
[366462565,1750267841361,-310.0,0.00022191,6]
[366462567,1750267841370,-400.0,0.00022191,6]
[366462569,1750267841379,-460.0,0.00022191,6]
[366462571,1750267841389,-330.0,0.00022191,6]
[366462573,1750267841398,-460.0,0.00022191,6]
[366462575,1750267841407,-460.0,0.00022191,6]
[366462577,1750267841416,-460.0,0.00022191,6]
[366462579,1750267841425,-460.0,0.00022191,6]
[366462581,1750267841434,-460.0,0.00022191,6]
[366462583,1750267841444,-460.0,0.00022191,6]
[366462585,1750267841453,-460.0,0.00022191,6]
[366462587,1750267841462,-360.0,0.00022191,6]
[366462588,1750267841471,-460.0,0.00022191,6]
[366462590,1750267841481,-460.0,0.00022191,6]
[366462592,1750267841491,-460.0,0.00022191,6]
[366462594,1750267841500,-460.0,0.00022191,6]
[366462596,1750267841510,-460.0,0.00022191,6]
[366462598,1750267841519,-460.0,0.00022191,6]
[366462600,1750267841529,-440.0,0.00022191,6]
[366462602,1750267841540,-490.2,0.00022191,6]
[366462604,1750267841549,-460.0,0.00022191,6]
[366462606,1750267841559,-460.0,0.00022191,6]
[366462608,1750267841568,-460.0,0.00022191,6]
[366462610,1750267841578,-460.0,0.00022191,6]
[366462612,1750267841587,-262.26826362,0.00022191,6]
[366462614,1750267841598,-460.0,0.00022191,6]
[366462616,1750267841607,-460.0,0.00022191,6]
[366462618,1750267841618,-503.27,0.00022191,6]
[366462620,1750267841627,-460.0,0.00022191,6]
[366462622,1750267841637,-460.0,0.00022191,6]
[366462624,1750267841646,-460.0,0.00022191,6]
[366462626,1750267841655,-460.0,0.00022191,6]
[366462628,1750267841664,-330.0,0.00022191,6]
[366462630,1750267841673,-460.0,0.00022191,6]
[366462632,1750267841683,-460.0,0.00022191,6]
[366462634,1750267841693,-460.0,0.00022191,6]
[366462636,1750267841702,-460.0,0.00022191,6]
[366462638,1750267841711,-460.0,0.00022191,6]
[366462640,1750267841721,-460.0,0.00022191,6]
[366462642,1750267841730,-597.01542089,0.00022191,6]
[366462644,1750267841740,-357.0822292,0.00022191,6]
[366462646,1750267841749,-460.0,0.00022191,6]
[366462648,1750267841758,-460.0,0.00022191,6]
[366462650,1750267841768,-460.0,0.00022191,6]
[366462652,1750267841778,-1176.29,0.00022191,6]
[366462654,1750267841787,-460.0,0.00022191,6]
[366462656,1750267841797,-420.0,0.00022191,6]
[366462658,1750267841807,-420.0,0.00022191,6]
[366462660,1750267841816,-499.68,0.00022191,6]
[366462662,1750267841825,-454.35585953,0.00022191,6]
[366462664,1750267841835,-350.0,0.00022191,6]
[366462666,1750267841848,-460.0,0.00022191,6]
[366462668,1750267841857,-460.0,0.00022191,6]
[366462670,1750267841867,-460.0,0.00022191,6]
[366462672,1750267841877,-265.41635084,0.00022191,6]
[366462674,1750267841886,-2514.75,0.00022191,6]
[366462676,1750267841896,-460.0,0.00022191,6]
[366462678,1750267841905,-460.0,0.00022191,6]
[366462680,1750267841915,-159.57021451,0.00022191,6]
[366462682,1750267841925,-460.0,0.00022191,6]
[366462684,1750267841934,-460.0,0.00022191,6]
[366462686,1750267841944,-492.75,0.00022191,6]
[366462688,1750267841953,-460.0,0.00022191,6]
[366462690,1750267841963,-460.0,0.00022191,6]
[366462692,1750267841972,-460.0,0.00022191,6]
[366462694,1750267841983,-499.09,0.00022191,6]
[366462696,1750267841992,-460.0,0.00022191,6]
[366462698,1750267842002,-460.0,0.00022191,6]
[366462700,1750267842011,-460.0,0.00022191,6]
[366462702,1750267842021,-2763.14,0.00022191,6]
[366462704,1750267842031,-460.0,0.00022191,6]
[366462706,1750267842040,-2575.06,0.00022191,6]
[366462708,1750267842050,-1626.15,0.00022191,6]
[366462710,1750267842059,-1083.03,0.00022191,6]
[366462712,1750267842068,-460.0,0.00022191,6]
[366462714,1750267842077,-460.0,0.00022191,6]
[366462716,1750267842087,-460.0,0.00022191,6]
[366462718,1750267842096,-460.0,0.00022191,6]
[366462720,1750267842105,-578.9,0.00022191,6]
[366462722,1750267842115,-460.0,0.00022191,6]
[366462724,1750267842124,-2431.6,0.00022191,6]
[366462726,1750267842133,-899.37,0.00022191,6]
[366462728,1750267842142,-460.0,0.00022191,6]
[366462730,1750267842152,-749.32,0.00022191,6]
[366462732,1750267842161,-460.0,0.00022191,6]
[366462734,1750267842170,-460.0,0.00022191,6]
[366462736,1750267842179,-554.65332849,0.00022191,6]
[366462738,1750267842189,-460.0,0.00022191,6]
[366462740,1750267842199,-460.0,0.00022191,6]
[366462742,1750267842208,-460.0,0.00022191,6]
[366462744,1750267842217,-460.0,0.00022191,6]
[366462746,1750267842226,-460.0,0.00022191,6]
[366462748,1750267842236,-460.0,0.00022191,6]
[366462750,1750267842248,-460.0,0.00022191,6]
[366462752,1750267842257,-460.0,0.00022191,6]
[366462754,1750267842266,-460.0,0.00022191,6]
[366462756,1750267842276,-924.08,0.00022191,6]
[366462758,1750267842285,-460.0,0.00022191,6]
[366462760,1750267842296,-460.0,0.00022191,6]
[366462762,1750267842306,-460.0,0.00022191,6]
[366462764,1750267842316,-460.0,0.00022191,6]
[366462766,1750267842325,-460.0,0.00022191,6]
[366462768,1750267842336,-460.0,0.00022191,6]
[366462770,1750267842346,-460.0,0.00022191,6]
[366462772,1750267842355,-460.0,0.00022191,6]
[366462774,1750267842366,-173.27911492,0.00022191,6]
[366462776,1750267842375,-460.0,0.00022191,6]
[366462778,1750267842384,-460.0,0.00022191,6]
[366462779,1750267842394,-460.0,0.00022191,6]
[366462781,1750267842404,-460.0,0.00022191,6]
[366462783,1750267842413,-460.0,0.00022191,6]
[366462785,1750267842423,-1212.2,0.00022191,6]
[366462787,1750267842433,-378.94888161,0.00022191,6]
[366462790,1750267842443,-460.0,0.00022191,6]
[366462792,1750267842453,-460.0,0.00022191,6]
[366462794,1750267842462,-460.0,0.00022191,6]
[366462796,1750267842471,-882.51,0.00022191,6]
[366462798,1750267842480,-460.0,0.00022191,6]
[366462799,1750267842490,-665.58,0.00022191,6]
[366462801,1750267842499,-460.0,0.00022191,6]
[366462803,1750267842508,-1836.53,0.00022191,6]
[366462805,1750267842517,-460.0,0.00022191,6]
[366462807,1750267842527,-460.0,0.00022191,6]
[366462809,1750267842536,-460.0,0.00022191,6]
[366462811,1750267842547,-506.77,0.00022191,6]
[366462813,1750267842557,-460.0,0.00022191,6]
[366462815,1750267842566,-500.33,0.00022191,6]
[366462817,1750267842576,-460.0,0.00022191,6]
[366462819,1750267842586,-460.0,0.00022191,6]
[366462821,1750267842596,-809.6,0.00022191,6]
[366462823,1750267842606,-460.0,0.00022191,6]
[366462825,1750267842615,-460.0,0.00022191,6]
[366462827,1750267842625,-460.0,0.00022191,6]
[366462829,1750267842634,-460.0,0.00022191,6]
[366462831,1750267842643,-460.0,0.00022191,6]
[366462833,1750267842652,-460.0,0.00022191,6]
[366462835,1750267842662,-460.0,0.00022191,6]
[366462837,1750267842671,-460.0,0.00022191,6]
[366462839,1750267842681,-4862.94,0.00022191,6]
[366462841,1750267842691,-1112.01,0.00022191,6]
[366462843,1750267842700,-460.0,0.00022191,2]
[366462845,1750267842709,-460.0,0.00022191,6]
[366462847,1750267842719,-460.0,0.00022191,6]
[366462849,1750267842728,-668.04,0.00022191,6]
[366462851,1750267842738,-460.0,0.00022191,6]
[366462853,1750267842747,-460.0,0.00022191,6]
[366462855,1750267842757,-460.0,0.00022191,6]
[366462857,1750267842766,-460.0,0.00022191,6]
[366462859,1750267842775,-873.57596722,0.00022314,7]
[366462861,1750267842784,-1634.11,0.00022339,2]
[366462863,1750267842793,-420.0,0.00022427,2]
[366462865,1750267842803,-300.0,0.00022427,2]
[366462867,1750267842812,-420.0,0.00022428,2]
[366462869,1750267842821,-873.57596722,0.00022452,7]
[366462871,1750267842832,-233.79745615,0.00022465,6]
[366462873,1750267842845,-460.0,0.00022465,6]
[366462875,1750267842854,-460.0,0.00022465,6]
[366462877,1750267842864,-460.0,0.00022465,6]
[366462879,1750267842874,-460.0,0.00022465,6]
[366462881,1750267842884,-460.0,0.00022465,6]
[366462883,1750267842892,-460.0,0.00022465,6]
[366462885,1750267842902,-460.0,0.00022465,6]
[366462887,1750267842911,-460.0,0.00022465,6]
[366462889,1750267842921,-490.2,0.00022465,6]
[366462891,1750267842931,-460.0,0.00022465,6]
[366462893,1750267842941,-460.0,0.00022465,6]
[366462895,1750267842951,-503.27,0.00022465,6]
[366462897,1750267842960,-460.0,0.00022465,6]
[366462900,1750267842970,-380.0,0.00022465,6]
[366462902,1750267842979,-460.0,0.00022465,6]
[366462904,1750267842988,-460.0,0.00022465,6]
[366462905,1750267842997,-460.0,0.00022465,6]
[366462907,1750267843008,-460.0,0.00022465,6]
[366462909,1750267843018,-460.0,0.00022465,6]
[366462912,1750267843027,-460.0,0.00022465,6]
[366462915,1750267843036,-1176.29,0.00022465,6]
[366462918,1750267843045,-460.0,0.00022465,6]
[366462922,1750267843055,-499.68,0.00022465,6]
[366462923,1750267843064,-460.0,0.00022465,6]
[366462926,1750267843073,-460.0,0.00022465,6]
[366462929,1750267843082,-300.0,0.00022465,6]
[366462932,1750267843091,-2514.75,0.00022465,6]
[366462935,1750267843100,-340.0,0.00022465,6]
[366462938,1750267843110,-460.0,0.00022465,6]
[366462942,1750267843120,-460.0,0.00022465,6]
[366462945,1750267843131,-492.75,0.00022465,6]
[366462948,1750267843141,-460.0,0.00022465,6]
[366462951,1750267843150,-499.09,0.00022465,6]
[366462955,1750267843158,-460.0,0.00022465,6]
[366462958,1750267843167,-460.0,0.00022465,6]
[366462960,1750267843176,-2763.14,0.00022465,6]
[366462962,1750267843185,-460.0,0.00022465,6]
[366462964,1750267843194,-2575.06,0.00022465,6]
[366462966,1750267843202,-1626.15,0.00022465,6]
[366462968,1750267843211,-1083.03,0.00022465,6]
[366462970,1750267843221,-460.0,0.00022465,6]
[366462973,1750267843231,-460.0,0.00022465,6]
[366462975,1750267843240,-578.9,0.00022465,6]
[366462977,1750267843249,-460.0,0.00022465,6]
[366462979,1750267843259,-2431.6,0.00022465,6]
[366462981,1750267843268,-899.37,0.00022465,6]
[366462983,1750267843278,-350.0,0.00022465,6]
[366462985,1750267843287,-749.32,0.00022465,6]
[366462987,1750267843296,-460.0,0.00022465,6]
[366462989,1750267843306,-460.0,0.00022465,6]
[366462991,1750267843315,-460.0,0.00022465,6]
[366462993,1750267843325,-460.0,0.00022465,6]
[366462995,1750267843334,-460.0,0.00022465,6]
[366462997,1750267843344,-460.0,0.00022465,6]
[366462999,1750267843353,-460.0,0.00022465,6]
[366463001,1750267843363,-460.0,0.00022465,6]
[366463003,1750267843372,-460.0,0.00022465,6]
[366463005,1750267843381,-924.08,0.00022465,6]
[366463007,1750267843390,-460.0,0.00022465,6]
[366463009,1750267843399,-460.0,0.00022465,6]
[366463011,1750267843409,-460.0,0.00022465,6]
[366463013,1750267843418,-460.0,0.00022465,6]
[366463015,1750267843427,-460.0,0.00022465,6]
[366463016,1750267843436,-460.0,0.00022465,6]
[366463018,1750267843446,-460.0,0.00022465,6]
[366463020,1750267843455,-460.0,0.00022465,6]
[366463022,1750267843465,-460.0,0.00022465,6]
[366463024,1750267843474,-460.0,0.00022465,6]
[366463026,1750267843484,-1212.2,0.00022465,6]
[366463028,1750267843493,-460.0,0.00022465,6]
[366463030,1750267843503,-460.0,0.00022465,6]
[366463032,1750267843513,-460.0,0.00022465,6]
[366463034,1750267843522,-882.51,0.00022465,6]
[366463036,1750267843532,-460.0,0.00022465,6]
[366463038,1750267843542,-665.58,0.00022465,6]
[366463040,1750267843551,-460.0,0.00022465,6]
[366463042,1750267843560,-1836.53,0.00022465,6]
[366463044,1750267843570,-460.0,0.00022465,6]
[366463046,1750267843579,-506.77,0.00022465,6]
[366463048,1750267843589,-500.33,0.00022465,6]
[366463050,1750267843598,-460.0,0.00022465,6]
[366463052,1750267843607,-809.6,0.00022465,6]
[366463054,1750267843620,-460.0,0.00022465,6]
[366463056,1750267843629,-460.0,0.00022465,6]
[366463059,1750267843640,-460.0,0.00022465,6]
[366463061,1750267843649,-460.0,0.00022465,6]
[366463063,1750267843659,-4862.94,0.00022465,6]
[366463065,1750267843668,-1112.01,0.00022465,6]
[366463067,1750267843678,-460.0,0.00022465,2]
[366463069,1750267843687,-460.0,0.00022465,6]
[366463071,1750267843696,-460.0,0.00022465,6]
[366463073,1750267843706,-668.04,0.00022465,6]
[366463075,1750267843716,-460.0,0.00022465,6]
[366463077,1750267843726,-835.98428123,0.00022478,2]
[366463080,1750267843735,-229.98435572,0.00022478,2]
[366463095,1750267843863,-160.0,0.00022478,2]
[366463097,1750267843872,-1200.0,0.00022534,2]
[366463099,1750267843883,-873.57596722,0.0002259,7]
[366463101,1750267843892,-5000.0,0.00022681,2]
[366463103,1750267843900,-500.0,0.00022681,2]
[366463105,1750267843908,-500.0,0.00022681,2]
[366463107,1750267843918,-500.0,0.00022681,2]
[366463109,1750267843928,-500.0,0.00022681,2]
[366463111,1750267843937,-500.0,0.00022681,2]
[366463113,1750267843946,-500.0,0.00022681,2]
[366463114,1750267843955,-500.0,0.00022681,2]
[366463115,1750267843964,-500.0,0.00022681,2]
[366463116,1750267843973,-500.0,0.00022681,2]
[366463117,1750267843982,-500.0,0.00022681,2]
[366463118,1750267843991,-500.0,0.00022681,2]
[366463119,1750267844001,-500.0,0.00022681,2]
[366463120,1750267844010,-500.0,0.00022681,2]
[366463121,1750267844019,-500.0,0.00022681,2]
[366463122,1750267844028,-500.0,0.00022681,2]
[366463123,1750267844037,-500.0,0.00022681,2]
[366463124,1750267844046,-207.4,0.00022681,2]
[366463125,1750267844055,-500.0,0.00022681,2]
[366463126,1750267844064,-500.0,0.00022681,2]
[366463127,1750267844073,-500.0,0.00022681,2]
[366463128,1750267844082,-500.0,0.00022681,2]
[366463129,1750267844091,-500.0,0.00022681,2]
[366463130,1750267844100,-500.0,0.00022681,2]
[366463131,1750267844111,-500.0,0.00022681,2]
[366463132,1750267844120,-500.0,0.00022681,2]
[366463133,1750267844129,-500.0,0.00022681,2]
[366463134,1750267844139,-500.0,0.00022681,2]
[366463135,1750267844148,-500.0,0.00022681,2]
[366463136,1750267844157,-500.0,0.00022681,2]
[366463137,1750267844165,-500.0,0.00022681,2]
[366463139,1750267844174,-500.0,0.00022681,2]
[366463140,1750267844183,-873.57596722,0.00022728,7]
[366463142,1750267844193,-500.0,0.00022738,3]
[366463144,1750267844202,-460.0,0.00022739,6]
[366463146,1750267844211,-460.0,0.00022739,6]
[366463148,1750267844220,-460.0,0.00022739,6]
[366463150,1750267844229,-460.0,0.00022739,6]
[366463152,1750267844239,-440.0,0.00022739,6]
[366463154,1750267844248,-490.2,0.00022739,6]
[366463156,1750267844258,-460.0,0.00022739,6]
[366463158,1750267844267,-503.27,0.00022739,6]
[366463160,1750267844276,-460.0,0.00022739,6]
[366463162,1750267844286,-460.0,0.00022739,6]
[366463164,1750267844294,-460.0,0.00022739,6]
[366463166,1750267844304,-1176.29,0.00022739,6]
[366463168,1750267844313,-460.0,0.00022739,6]
[366463170,1750267844322,-499.68,0.00022739,6]
[366463172,1750267844331,-460.0,0.00022739,6]
[366463174,1750267844341,-460.0,0.00022739,6]
[366463176,1750267844350,-2514.75,0.00022739,6]
[366463178,1750267844359,-460.0,0.00022739,6]
[366463180,1750267844369,-492.75,0.00022739,6]
[366463182,1750267844378,-460.0,0.00022739,6]
[366463184,1750267844387,-499.09,0.00022739,6]
[366463186,1750267844397,-460.0,0.00022739,6]
[366463188,1750267844406,-460.0,0.00022739,6]
[366463190,1750267844415,-2763.14,0.00022739,6]
[366463191,1750267844424,-460.0,0.00022739,6]
[366463193,1750267844435,-2575.06,0.00022739,6]
[366463195,1750267844447,-1626.15,0.00022739,6]
[366463197,1750267844456,-1083.03,0.00022739,6]
[366463199,1750267844465,-460.0,0.00022739,6]
[366463201,1750267844474,-460.0,0.00022739,6]
[366463203,1750267844483,-578.9,0.00022739,6]
[366463205,1750267844493,-460.0,0.00022739,6]
[366463207,1750267844504,-2431.6,0.00022739,6]
[366463209,1750267844513,-899.37,0.00022739,6]
[366463211,1750267844523,-749.32,0.00022739,6]
[366463213,1750267844532,-460.0,0.00022739,6]
[366463215,1750267844542,-460.0,0.00022739,6]
[366463217,1750267844551,-460.0,0.00022739,6]
[366463219,1750267844561,-460.0,0.00022739,6]
[366463221,1750267844570,-460.0,0.00022739,6]
[366463223,1750267844579,-460.0,0.00022739,6]
[366463225,1750267844588,-924.08,0.00022739,6]
[366463227,1750267844597,-460.0,0.00022739,6]
[366463229,1750267844606,-281.87326068,0.00022739,6]
[366463231,1750267844616,-460.0,0.00022739,6]
[366463233,1750267844625,-460.0,0.00022739,6]
[366463235,1750267844635,-460.0,0.00022739,6]
[366463237,1750267844644,-460.0,0.00022739,6]
[366463239,1750267844653,-210.75529982,0.00022739,6]
[366463241,1750267844662,-460.0,0.00022739,6]
[366463243,1750267844671,-460.0,0.00022739,6]
[366463245,1750267844681,-1212.2,0.00022739,6]
[366463247,1750267844690,-460.0,0.00022739,6]
[366463249,1750267844699,-460.0,0.00022739,6]
[366463251,1750267844708,-882.51,0.00022739,6]
[366463253,1750267844717,-460.0,0.00022739,6]
[366463255,1750267844726,-665.58,0.00022739,6]
[366463257,1750267844736,-460.0,0.00022739,6]
[366463259,1750267844745,-1836.53,0.00022739,6]
[366463261,1750267844754,-460.0,0.00022739,6]
[366463263,1750267844764,-506.77,0.00022739,6]
[366463265,1750267844773,-500.33,0.00022739,6]
[366463267,1750267844782,-460.0,0.00022739,6]
[366463269,1750267844791,-809.6,0.00022739,6]
[366463270,1750267844799,-460.0,0.00022739,6]
[366463273,1750267844809,-460.0,0.00022739,6]
[366463275,1750267844819,-460.0,0.00022739,6]
[366463276,1750267844837,-460.0,0.00022739,6]
[366463278,1750267844854,-4862.94,0.00022739,6]
[366463281,1750267844864,-1112.01,0.00022739,6]
[366463282,1750267844873,-460.0,0.00022739,2]
[366463284,1750267844882,-460.0,0.00022739,6]
[366463286,1750267844892,-529.81900105,0.00022739,6]
[366463288,1750267844902,-668.04,0.00022739,6]
[366463290,1750267844911,-460.0,0.00022739,6]
[366463292,1750267844921,-161.46105909,0.00022809,2]
[366463294,1750267844931,-873.57596722,0.00022866,8]
[366463296,1750267844941,-500.0,0.00022983,2]
[366463298,1750267844950,-6026.69411084,0.00023,3]
[366463300,1750267844959,-873.57596722,0.00023003,8]
[366463302,1750267844969,-460.0,0.00023013,6]
[366463304,1750267844978,-460.0,0.00023013,6]
[366463306,1750267844987,-490.2,0.00023013,6]
[366463308,1750267844996,-460.0,0.00023013,6]
[366463310,1750267845005,-503.27,0.00023013,6]
[366463312,1750267845015,-460.0,0.00023013,6]
[366463314,1750267845023,-460.0,0.00023013,6]
[366463316,1750267845033,-460.0,0.00023013,6]
[366463318,1750267845043,-1176.29,0.00023013,6]
[366463320,1750267845052,-460.0,0.00023013,6]
[366463322,1750267845062,-499.68,0.00023013,6]
[366463324,1750267845071,-460.0,0.00023013,6]
[366463326,1750267845080,-460.0,0.00023013,6]
[366463328,1750267845088,-2514.75,0.00023013,6]
[366463330,1750267845097,-460.0,0.00023013,6]
[366463332,1750267845107,-492.75,0.00023013,6]
[366463334,1750267845116,-460.0,0.00023013,6]
[366463336,1750267845125,-499.09,0.00023013,6]
[366463338,1750267845134,-460.0,0.00023013,6]
[366463340,1750267845144,-460.0,0.00023013,6]
[366463342,1750267845153,-2763.14,0.00023013,6]
[366463344,1750267845162,-460.0,0.00023013,6]
[366463346,1750267845171,-2575.06,0.00023013,6]